[Event "Titled Tuesday Blitz May 16 Early 2023"]
[White "Dixit, Nikhil"]
[Black "carokannlover213"]
[WhiteFideId "5059534"]
[WhiteElo "2207"]
[BlackElo "2701"]
[Result "0-1"]
[Round "07"]
[TimeControl "180+2"]
[Date "2023.05.16"]
[WhiteClock "0:00:17"]
[BlackClock "0:00:11"]

1. e4 {[%clk 0:03:00]}  e5 {[%clk 0:02:57]} 2. Nf3 {[%clk 0:02:52]}  Nf6 {[%clk 0:02:57]} 3. Nc3 {[%clk 0:02:50]}  Bb4 {[%clk 0:02:55]} 4. Bd3 {[%clk 0:02:46]}  O-O {[%clk 0:02:53]} 5. O-O {[%clk 0:02:44]}  d6 {[%clk 0:02:48]} 6. h3 {[%clk 0:02:35]}  Nc6 {[%clk 0:02:44]} 7. Bc4 {[%clk 0:02:29]}  Bxc3 {[%clk 0:02:12]} 8. dxc3 {[%clk 0:02:12]}  Nxe4 {[%clk 0:02:11]} 9. Bd5 {[%clk 0:02:03]}  Nc5 {[%clk 0:01:47]} 10. Ng5 {[%clk 0:02:01]}  h6 {[%clk 0:01:29]} 11. Nxf7 {[%clk 0:01:27]}  Rxf7 {[%clk 0:01:29]} 12. Bxf7+ {[%clk 0:01:28]}  Kxf7 {[%clk 0:01:29]} 13. f4 {[%clk 0:01:28]}  Kg8 {[%clk 0:01:21]} 14. f5 {[%clk 0:01:26]}  Qf6 {[%clk 0:01:17]} 15. g4 {[%clk 0:01:16]}  Qh4 {[%clk 0:01:13]} 16. Qd5+ {[%clk 0:01:06]}  Kh7 {[%clk 0:01:05]} 17. Kg2 {[%clk 0:00:59]}  Ne7 {[%clk 0:01:00]} 18. Qf7 {[%clk 0:00:57]}  Qf6 {[%clk 0:00:39]} 19. Qxf6 {[%clk 0:00:40]}  gxf6 {[%clk 0:00:40]} 20. Be3 {[%clk 0:00:40]}  Na4 {[%clk 0:00:40]} 21. Rab1 {[%clk 0:00:38]}  Bd7 {[%clk 0:00:39]} 22. Kg3 {[%clk 0:00:38]}  Nd5 {[%clk 0:00:35]} 23. Bd2 {[%clk 0:00:38]}  Nab6 {[%clk 0:00:32]} 24. b3 {[%clk 0:00:37]}  Ne7 {[%clk 0:00:32]} 25. c4 {[%clk 0:00:37]}  d5 {[%clk 0:00:28]} 26. cxd5 {[%clk 0:00:33]}  Nbxd5 {[%clk 0:00:24]} 27. c4 {[%clk 0:00:34]}  Nb6 {[%clk 0:00:24]} 28. h4 {[%clk 0:00:34]}  Rg8 {[%clk 0:00:22]} 29. Kf3 {[%clk 0:00:33]}  Bc6+ {[%clk 0:00:20]} 30. Kg3 {[%clk 0:00:32]}  Be4 {[%clk 0:00:18]} 31. Rbe1 {[%clk 0:00:29]}  Bxf5 {[%clk 0:00:17]} 32. g5 {[%clk 0:00:30]}  hxg5 {[%clk 0:00:14]} 33. hxg5 {[%clk 0:00:31]}  Nd7 {[%clk 0:00:13]} 34. Rh1+ {[%clk 0:00:29]}  Kg7 {[%clk 0:00:12]} 35. Kf2 {[%clk 0:00:29]}  fxg5 {[%clk 0:00:11]} 36. Bxg5 {[%clk 0:00:29]}  Ng6 {[%clk 0:00:12]} 37. Reg1 {[%clk 0:00:30]}  Kf7 {[%clk 0:00:11]} 38. Rh7+ {[%clk 0:00:29]}  Rg7 {[%clk 0:00:12]} 39. Rxg7+ {[%clk 0:00:29]}  Kxg7 {[%clk 0:00:12]} 40. Be3 {[%clk 0:00:29]}  Kf7 {[%clk 0:00:11]} 41. Bxa7 {[%clk 0:00:28]}  b6 {[%clk 0:00:11]} 42. a4 {[%clk 0:00:28]}  Ne7 {[%clk 0:00:11]} 43. Ra1 {[%clk 0:00:25]}  Nc6 {[%clk 0:00:08]} 44. a5 {[%clk 0:00:24]}  Nxa5 {[%clk 0:00:09]} 45. c5 {[%clk 0:00:19]}  Nxb3 {[%clk 0:00:07]} 46. Re1 {[%clk 0:00:12]}  Nbxc5 {[%clk 0:00:07]} 47. Ke3 {[%clk 0:00:11]}  Ke6 {[%clk 0:00:07]} 48. Rf1 {[%clk 0:00:10]}  Nf6 {[%clk 0:00:07]} 49. Rh1 {[%clk 0:00:10]}  Nd5+ {[%clk 0:00:08]} 50. Kd2 {[%clk 0:00:10]}  Ne4+ {[%clk 0:00:07]} 51. Kd1 {[%clk 0:00:08]}  Nf2+ {[%clk 0:00:07]} 52. Ke2 {[%clk 0:00:07]}  Nxh1 {[%clk 0:00:08]} 53. Bxb6 {[%clk 0:00:08]}  cxb6 {[%clk 0:00:08]} 54. Kf1 {[%clk 0:00:08]}  Nf2 {[%clk 0:00:08]} 55. Kg2 {[%clk 0:00:09]}  e4 {[%clk 0:00:08]} 56. Kh2 {[%clk 0:00:10]}  b5 {[%clk 0:00:09]} 57. Kg2 {[%clk 0:00:11]}  b4 {[%clk 0:00:10]} 58. Kf1 {[%clk 0:00:12]}  b3 {[%clk 0:00:11]} 59. Ke2 {[%clk 0:00:13]}  b2 {[%clk 0:00:11]} 60. Kd2 {[%clk 0:00:14]}  Nd3 {[%clk 0:00:11]} 61. Ke2 {[%clk 0:00:15]}  b1=Q {[%clk 0:00:10]} 62. Kd2 {[%clk 0:00:16]}  Qc1+ {[%clk 0:00:10]} 63. Ke2 {[%clk 0:00:17]}  Qe1# {[%clk 0:00:11]} 0-1


[Site "https://www.chess.com"]

[Event "Titled Tuesday Blitz May 16 Early 2023"]
[White "Mendez Fortes, Eduardo Jesus"]
[Black "OPQRC"]
[WhiteFideId "3502376"]
[WhiteElo "2307"]
[BlackElo "2561"]
[Result "1/2-1/2"]
[Round "07"]
[TimeControl "180+2"]
[Date "2023.05.16"]
[WhiteClock "0:00:15"]
[BlackClock "0:00:14"]

1. e4 {[%clk 0:03:00]}  c5 {[%clk 0:02:59]} 2. Nf3 {[%clk 0:03:00]}  e6 {[%clk 0:02:58]} 3. d4 {[%clk 0:03:01]}  cxd4 {[%clk 0:02:59]} 4. Nxd4 {[%clk 0:03:02]}  Nf6 {[%clk 0:02:58]} 5. Nc3 {[%clk 0:03:02]}  Nc6 {[%clk 0:02:58]} 6. Ndb5 {[%clk 0:03:02]}  Bb4 {[%clk 0:02:58]} 7. a3 {[%clk 0:03:01]}  Bxc3+ {[%clk 0:02:57]} 8. Nxc3 {[%clk 0:03:02]}  d5 {[%clk 0:02:58]} 9. exd5 {[%clk 0:03:03]}  exd5 {[%clk 0:02:58]} 10. Bd3 {[%clk 0:03:02]}  O-O {[%clk 0:02:57]} 11. O-O {[%clk 0:03:02]}  h6 {[%clk 0:02:58]} 12. h3 {[%clk 0:03:00]}  Re8 {[%clk 0:02:57]} 13. Bf4 {[%clk 0:02:59]}  Qb6 {[%clk 0:02:50]} 14. Qd2 {[%clk 0:02:44]}  Bd7 {[%clk 0:02:41]} 15. Na4 {[%clk 0:02:33]}  Qd4 {[%clk 0:02:22]} 16. b3 {[%clk 0:02:32]}  Ne4 {[%clk 0:02:08]} 17. Qd1 {[%clk 0:02:22]}  b6 {[%clk 0:01:15]} 18. Qf3 {[%clk 0:01:53]}  Ne5 {[%clk 0:01:04]} 19. Bxe5 {[%clk 0:01:52]}  Rxe5 {[%clk 0:01:00]} 20. Rad1 {[%clk 0:01:49]}  Bxa4 {[%clk 0:00:53]} 21. bxa4 {[%clk 0:01:42]}  Qxa4 {[%clk 0:00:51]} 22. c4 {[%clk 0:01:40]}  Nf6 {[%clk 0:00:24]} 23. cxd5 {[%clk 0:01:32]}  Rxd5 {[%clk 0:00:18]} 24. Bc2 {[%clk 0:01:04]}  Qxc2 {[%clk 0:00:17]} 25. Rxd5 {[%clk 0:01:04]}  Nxd5 {[%clk 0:00:18]} 26. Qxd5 {[%clk 0:01:04]}  Rc8 {[%clk 0:00:17]} 27. Re1 {[%clk 0:01:01]}  a5 {[%clk 0:00:09]} 28. Re7 {[%clk 0:00:59]}  Qc1+ {[%clk 0:00:09]} 29. Kh2 {[%clk 0:00:55]}  Qf4+ {[%clk 0:00:09]} 30. g3 {[%clk 0:00:55]}  Qxf2+ {[%clk 0:00:09]} 31. Qg2 {[%clk 0:00:56]}  Qxg2+ {[%clk 0:00:10]} 32. Kxg2 {[%clk 0:00:57]}  Rc2+ {[%clk 0:00:10]} 33. Kg1 {[%clk 0:00:57]}  Rc3 {[%clk 0:00:10]} 34. Rb7 {[%clk 0:00:55]}  Rxg3+ {[%clk 0:00:10]} 35. Kh2 {[%clk 0:00:54]}  Rxa3 {[%clk 0:00:10]} 36. Rxb6 {[%clk 0:00:54]}  g6 {[%clk 0:00:10]} 37. Ra6 {[%clk 0:00:54]}  Kg7 {[%clk 0:00:10]} 38. Kg2 {[%clk 0:00:55]}  a4 {[%clk 0:00:11]} 39. Kh2 {[%clk 0:00:54]}  h5 {[%clk 0:00:11]} 40. h4 {[%clk 0:00:54]}  f6 {[%clk 0:00:10]} 41. Ra5 {[%clk 0:00:54]}  Kh6 {[%clk 0:00:09]} 42. Ra6 {[%clk 0:00:52]}  Rf3 {[%clk 0:00:08]} 43. Kg2 {[%clk 0:00:52]}  Rf4 {[%clk 0:00:07]} 44. Kg3 {[%clk 0:00:52]}  Rg4+ {[%clk 0:00:08]} 45. Kh3 {[%clk 0:00:52]}  Rf4 {[%clk 0:00:07]} 46. Kg3 {[%clk 0:00:52]}  Rb4 {[%clk 0:00:06]} 47. Kh3 {[%clk 0:00:50]}  f5 {[%clk 0:00:05]} 48. Ra7 {[%clk 0:00:47]}  Rb3+ {[%clk 0:00:05]} 49. Kg2 {[%clk 0:00:47]}  a3 {[%clk 0:00:06]} 50. Kh2 {[%clk 0:00:44]}  Rb2+ {[%clk 0:00:05]} 51. Kg3 {[%clk 0:00:45]}  a2 {[%clk 0:00:05]} 52. Kf3 {[%clk 0:00:40]}  Rc2 {[%clk 0:00:04]} 53. Kg3 {[%clk 0:00:39]}  Rb2 {[%clk 0:00:04]} 54. Kf3 {[%clk 0:00:40]}  Rb4 {[%clk 0:00:04]} 55. Kg3 {[%clk 0:00:35]}  f4+ {[%clk 0:00:03]} 56. Kf3 {[%clk 0:00:33]}  Rc4 {[%clk 0:00:03]} 57. Rxa2 {[%clk 0:00:32]}  Kg7 {[%clk 0:00:03]} 58. Ra6 {[%clk 0:00:32]}  Kf7 {[%clk 0:00:03]} 59. Rb6 {[%clk 0:00:31]}  Ra4 {[%clk 0:00:04]} 60. Rc6 {[%clk 0:00:31]}  Ra3+ {[%clk 0:00:04]} 61. Kxf4 {[%clk 0:00:30]}  Ra4+ {[%clk 0:00:05]} 62. Kg3 {[%clk 0:00:29]}  Rg4+ {[%clk 0:00:05]} 63. Kh3 {[%clk 0:00:29]}  Kg7 {[%clk 0:00:06]} 64. Rb6 {[%clk 0:00:29]}  Kh6 {[%clk 0:00:06]} 65. Rb5 {[%clk 0:00:28]}  Kg7 {[%clk 0:00:06]} 66. Ra5 {[%clk 0:00:28]}  Kf6 {[%clk 0:00:07]} 67. Rb5 {[%clk 0:00:28]}  Re4 {[%clk 0:00:06]} 68. Rb6+ {[%clk 0:00:28]}  Re6 {[%clk 0:00:06]} 69. Rb5 {[%clk 0:00:28]}  Re5 {[%clk 0:00:06]} 70. Rb4 {[%clk 0:00:25]}  Kf5 {[%clk 0:00:06]} 71. Rc4 {[%clk 0:00:19]}  Re3+ {[%clk 0:00:05]} 72. Kg2 {[%clk 0:00:19]}  Re4 {[%clk 0:00:05]} 73. Rc5+ {[%clk 0:00:18]}  Kg4 {[%clk 0:00:04]} 74. Rg5+ {[%clk 0:00:17]}  Kxh4 {[%clk 0:00:03]} 75. Rxg6 {[%clk 0:00:18]}  Ra4 {[%clk 0:00:03]} 76. Kh2 {[%clk 0:00:14]}  Rg4 {[%clk 0:00:04]} 77. Rxg4+ {[%clk 0:00:13]}  hxg4 {[%clk 0:00:05]} 78. Kg2 {[%clk 0:00:13]}  g3 {[%clk 0:00:06]} 79. Kg1 {[%clk 0:00:13]}  Kg4 {[%clk 0:00:06]} 80. Kg2 {[%clk 0:00:13]}  Kf4 {[%clk 0:00:07]} 81. Kg1 {[%clk 0:00:13]}  Kf5 {[%clk 0:00:08]} 82. Kg2 {[%clk 0:00:14]}  Kg4 {[%clk 0:00:09]} 83. Kg1 {[%clk 0:00:14]}  Kh3 {[%clk 0:00:10]} 84. Kh1 {[%clk 0:00:14]}  Kh4 {[%clk 0:00:11]} 85. Kg1 {[%clk 0:00:14]}  Kg4 {[%clk 0:00:11]} 86. Kg2 {[%clk 0:00:14]}  Kf4 {[%clk 0:00:12]} 87. Kg1 {[%clk 0:00:14]}  Kf3 {[%clk 0:00:12]} 88. Kf1 {[%clk 0:00:14]}  g2+ {[%clk 0:00:13]} 89. Kg1 {[%clk 0:00:15]}  Kg3 {[%clk 0:00:14]} 1/2-1/2


[Site "https://www.chess.com"]

[Event "Titled Tuesday Blitz May 16 Early 2023"]
[White "Belov, Alexei"]
[Black "Simonian, Hrair"]
[WhiteFideId "4128206"]
[BlackFideId "13302337"]
[WhiteElo "2554"]
[BlackElo "2447"]
[Result "0-1"]
[Round "07"]
[TimeControl "180+2"]
[Date "2023.05.16"]
[WhiteClock "0:00:04"]
[BlackClock "0:00:29"]

1. e4 {[%clk 0:03:00]}  c5 {[%clk 0:02:59]} 2. Nf3 {[%clk 0:03:00]}  e6 {[%clk 0:02:59]} 3. d4 {[%clk 0:03:01]}  cxd4 {[%clk 0:02:59]} 4. Nxd4 {[%clk 0:03:01]}  a6 {[%clk 0:03:00]} 5. Nc3 {[%clk 0:03:01]}  b5 {[%clk 0:03:00]} 6. Be2 {[%clk 0:03:01]}  Bb7 {[%clk 0:03:00]} 7. Bf3 {[%clk 0:03:01]}  Nc6 {[%clk 0:02:53]} 8. Nxc6 {[%clk 0:02:59]}  Bxc6 {[%clk 0:02:54]} 9. O-O {[%clk 0:02:59]}  Qc7 {[%clk 0:02:52]} 10. Re1 {[%clk 0:02:57]}  Bd6 {[%clk 0:02:41]} 11. h3 {[%clk 0:02:43]}  Ne7 {[%clk 0:02:39]} 12. Ne2 {[%clk 0:02:16]}  O-O {[%clk 0:02:35]} 13. Nd4 {[%clk 0:02:16]}  Bb7 {[%clk 0:02:35]} 14. e5 {[%clk 0:02:13]}  Bc5 {[%clk 0:02:26]} 15. Bxb7 {[%clk 0:01:56]}  Qxb7 {[%clk 0:02:27]} 16. Nb3 {[%clk 0:01:24]}  Bb6 {[%clk 0:02:24]} 17. Be3 {[%clk 0:01:24]}  Nd5 {[%clk 0:02:19]} 18. Bxb6 {[%clk 0:01:21]}  Qxb6 {[%clk 0:02:20]} 19. c3 {[%clk 0:01:14]}  Rac8 {[%clk 0:02:17]} 20. Qg4 {[%clk 0:01:11]}  Rc4 {[%clk 0:02:15]} 21. Qe2 {[%clk 0:00:53]}  Rfc8 {[%clk 0:02:11]} 22. Nd2 {[%clk 0:00:51]}  R4c7 {[%clk 0:02:00]} 23. Ne4 {[%clk 0:00:50]}  b4 {[%clk 0:01:56]} 24. c4 {[%clk 0:00:45]}  Nf4 {[%clk 0:01:46]} 25. Qf3 {[%clk 0:00:39]}  Ng6 {[%clk 0:01:47]} 26. Nd6 {[%clk 0:00:37]}  Nxe5 {[%clk 0:01:47]} 27. Qd1 {[%clk 0:00:33]}  f6 {[%clk 0:01:29]} 28. Nxc8 {[%clk 0:00:31]}  Rxc8 {[%clk 0:01:30]} 29. b3 {[%clk 0:00:32]}  a5 {[%clk 0:01:27]} 30. Qd2 {[%clk 0:00:30]}  Rc5 {[%clk 0:01:22]} 31. Kh1 {[%clk 0:00:30]}  g5 {[%clk 0:01:20]} 32. f4 {[%clk 0:00:28]}  gxf4 {[%clk 0:01:21]} 33. Qxf4 {[%clk 0:00:29]}  Qd8 {[%clk 0:01:07]} 34. Rad1 {[%clk 0:00:26]}  Qe7 {[%clk 0:01:02]} 35. Re3 {[%clk 0:00:24]}  Kf7 {[%clk 0:00:55]} 36. Qh6 {[%clk 0:00:22]}  Ke8 {[%clk 0:00:52]} 37. Qf4 {[%clk 0:00:18]}  Kd8 {[%clk 0:00:50]} 38. Re4 {[%clk 0:00:17]}  d6 {[%clk 0:00:44]} 39. Red4 {[%clk 0:00:17]}  Rc6 {[%clk 0:00:42]} 40. Qe3 {[%clk 0:00:14]}  Kc7 {[%clk 0:00:41]} 41. Rxd6 {[%clk 0:00:12]}  Rxd6 {[%clk 0:00:40]} 42. Qa7+ {[%clk 0:00:12]}  Kd8 {[%clk 0:00:41]} 43. Qb8+ {[%clk 0:00:12]}  Kd7 {[%clk 0:00:41]} 44. Qa7+ {[%clk 0:00:09]}  Ke8 {[%clk 0:00:42]} 45. Qb8+ {[%clk 0:00:08]}  Rd8 {[%clk 0:00:41]} 46. Qb5+ {[%clk 0:00:08]}  Kf7 {[%clk 0:00:40]} 47. Rxd8 {[%clk 0:00:07]}  Qxd8 {[%clk 0:00:41]} 48. c5 {[%clk 0:00:07]}  Qd1+ {[%clk 0:00:40]} 49. Kh2 {[%clk 0:00:07]}  Qd5 {[%clk 0:00:33]} 50. Qxa5 {[%clk 0:00:07]}  Nc6 {[%clk 0:00:33]} 51. Qc7+ {[%clk 0:00:06]}  Kg6 {[%clk 0:00:30]} 52. Qb6 {[%clk 0:00:04]}  e5 {[%clk 0:00:29]} 0-1


[Site "https://www.chess.com"]

[Event "Titled Tuesday Blitz May 16 Early 2023"]
[White "Cezila Jr, Rubens"]
[Black "MKlose11"]
[WhiteFideId "2116723"]
[WhiteElo "2214"]
[BlackElo "2671"]
[Result "0-1"]
[Round "07"]
[TimeControl "180+2"]
[Date "2023.05.16"]
[WhiteClock "0:00:00"]
[BlackClock "0:00:40"]

1. c4 {[%clk 0:03:00]}  Nf6 {[%clk 0:02:56]} 2. Nc3 {[%clk 0:03:01]}  c5 {[%clk 0:02:56]} 3. g3 {[%clk 0:02:58]}  Nc6 {[%clk 0:02:56]} 4. Nd5 {[%clk 0:02:59]}  e6 {[%clk 0:02:46]} 5. Nxf6+ {[%clk 0:02:58]}  Qxf6 {[%clk 0:02:47]} 6. Bg2 {[%clk 0:02:58]}  g6 {[%clk 0:02:41]} 7. e3 {[%clk 0:02:58]}  Bg7 {[%clk 0:02:41]} 8. Ne2 {[%clk 0:02:57]}  O-O {[%clk 0:02:42]} 9. O-O {[%clk 0:02:57]}  Rb8 {[%clk 0:02:40]} 10. Nc3 {[%clk 0:02:57]}  Qe7 {[%clk 0:02:39]} 11. d3 {[%clk 0:02:53]}  d6 {[%clk 0:02:31]} 12. a4 {[%clk 0:02:52]}  Bd7 {[%clk 0:02:31]} 13. Qe2 {[%clk 0:02:47]}  b6 {[%clk 0:02:31]} 14. Bd2 {[%clk 0:02:37]}  Rfd8 {[%clk 0:02:30]} 15. f4 {[%clk 0:02:34]}  Na5 {[%clk 0:02:28]} 16. Ra3 {[%clk 0:02:32]}  Bc6 {[%clk 0:02:27]} 17. Be1 {[%clk 0:02:22]}  Bxg2 {[%clk 0:02:25]} 18. Qxg2 {[%clk 0:02:23]}  Qb7 {[%clk 0:02:18]} 19. Qe2 {[%clk 0:02:17]}  Nc6 {[%clk 0:02:17]} 20. g4 {[%clk 0:02:17]}  d5 {[%clk 0:02:16]} 21. cxd5 {[%clk 0:01:56]}  exd5 {[%clk 0:02:17]} 22. Nd1 {[%clk 0:01:55]}  Re8 {[%clk 0:02:12]} 23. Qg2 {[%clk 0:01:55]}  Rbd8 {[%clk 0:02:09]} 24. f5 {[%clk 0:01:52]}  Qe7 {[%clk 0:02:02]} 25. g5 {[%clk 0:01:42]}  gxf5 {[%clk 0:01:52]} 26. Rxf5 {[%clk 0:01:42]}  Qe6 {[%clk 0:01:46]} 27. Rf4 {[%clk 0:01:01]}  Ne5 {[%clk 0:01:45]} 28. Bg3 {[%clk 0:00:55]}  Qg6 {[%clk 0:01:38]} 29. e4 {[%clk 0:00:34]}  dxe4 {[%clk 0:01:28]} 30. Rxe4 {[%clk 0:00:34]}  Qxg5 {[%clk 0:01:18]} 31. Ne3 {[%clk 0:00:24]}  Ng6 {[%clk 0:01:13]} 32. h4 {[%clk 0:00:22]}  Qf6 {[%clk 0:01:08]} 33. h5 {[%clk 0:00:20]}  Rxe4 {[%clk 0:01:01]} 34. dxe4 {[%clk 0:00:14]}  Nf4 {[%clk 0:00:51]} 35. Bxf4 {[%clk 0:00:10]}  Qxf4 {[%clk 0:00:51]} 36. h6 {[%clk 0:00:02]}  Qxh6 {[%clk 0:00:48]} 37. Nd5 {[%clk 0:00:02]}  Kh8 {[%clk 0:00:42]} 38. Rg3 {[%clk 0:00:00]}  Qc1+ {[%clk 0:00:40]} 0-1


[Site "https://www.chess.com"]

[Event "Titled Tuesday Blitz May 16 Early 2023"]
[White "Martinez Ramirez, Lennis"]
[Black "Garrido, Denis"]
[WhiteFideId "3509079"]
[BlackFideId "601217"]
[WhiteElo "2410"]
[BlackElo "2306"]
[Result "0-1"]
[Round "07"]
[TimeControl "180+2"]
[Date "2023.05.16"]
[WhiteClock "0:00:02"]
[BlackClock "0:00:19"]

1. c4 {[%clk 0:03:00]}  Nf6 {[%clk 0:02:59]} 2. Nc3 {[%clk 0:03:01]}  e5 {[%clk 0:02:58]} 3. g3 {[%clk 0:03:00]}  d5 {[%clk 0:02:59]} 4. cxd5 {[%clk 0:03:00]}  Nxd5 {[%clk 0:02:59]} 5. Bg2 {[%clk 0:03:00]}  Nb6 {[%clk 0:03:00]} 6. Nf3 {[%clk 0:02:59]}  Nc6 {[%clk 0:03:00]} 7. Rb1 {[%clk 0:02:57]}  a5 {[%clk 0:02:59]} 8. a3 {[%clk 0:02:47]}  Be7 {[%clk 0:02:52]} 9. b4 {[%clk 0:02:47]}  axb4 {[%clk 0:02:52]} 10. axb4 {[%clk 0:02:46]}  O-O {[%clk 0:02:43]} 11. b5 {[%clk 0:02:46]}  Nd4 {[%clk 0:02:43]} 12. Nxe5 {[%clk 0:02:45]}  Bf6 {[%clk 0:02:42]} 13. Nf3 {[%clk 0:02:14]}  Nxf3+ {[%clk 0:02:22]} 14. Bxf3 {[%clk 0:02:15]}  Bh3 {[%clk 0:02:22]} 15. Bxb7 {[%clk 0:02:12]}  Ra7 {[%clk 0:02:17]} 16. Bc6 {[%clk 0:02:04]}  Nc4 {[%clk 0:02:14]} 17. Ne4 {[%clk 0:01:54]}  Bd4 {[%clk 0:01:59]} 18. e3 {[%clk 0:01:44]}  Ne5 {[%clk 0:01:47]} 19. Qh5 {[%clk 0:00:21]}  Bg4 {[%clk 0:01:26]} 20. Qxg4 {[%clk 0:00:21]}  Nxg4 {[%clk 0:01:26]} 21. exd4 {[%clk 0:00:22]}  Qxd4 {[%clk 0:01:16]} 22. O-O {[%clk 0:00:23]}  Ra2 {[%clk 0:01:11]} 23. Nc3 {[%clk 0:00:16]}  Rc2 {[%clk 0:01:00]} 24. Rb2 {[%clk 0:00:14]}  Rxb2 {[%clk 0:01:00]} 25. Bxb2 {[%clk 0:00:15]}  Ne5 {[%clk 0:00:59]} 26. Bg2 {[%clk 0:00:14]}  Qxd2 {[%clk 0:00:59]} 27. Ba1 {[%clk 0:00:14]}  Nd3 {[%clk 0:00:53]} 28. Ne4 {[%clk 0:00:13]}  Qb4 {[%clk 0:00:51]} 29. h4 {[%clk 0:00:14]}  Qxb5 {[%clk 0:00:50]} 30. Ng5 {[%clk 0:00:14]}  h6 {[%clk 0:00:44]} 31. Nf3 {[%clk 0:00:13]}  Re8 {[%clk 0:00:41]} 32. Nd4 {[%clk 0:00:14]}  Qc4 {[%clk 0:00:40]} 33. Nf5 {[%clk 0:00:14]}  f6 {[%clk 0:00:36]} 34. Ne3 {[%clk 0:00:08]}  Qc5 {[%clk 0:00:25]} 35. Nd5 {[%clk 0:00:07]}  Re2 {[%clk 0:00:23]} 36. Ne3 {[%clk 0:00:08]}  Rxe3 {[%clk 0:00:20]} 37. fxe3 {[%clk 0:00:08]}  Qxe3+ {[%clk 0:00:21]} 38. Kh2 {[%clk 0:00:08]}  h5 {[%clk 0:00:21]} 39. Rf3 {[%clk 0:00:08]}  Qd2 {[%clk 0:00:20]} 40. Bd4 {[%clk 0:00:09]}  Ne1 {[%clk 0:00:20]} 41. Rf2 {[%clk 0:00:03]}  Qxd4 {[%clk 0:00:20]} 42. Bh1 {[%clk 0:00:01]}  Qxf2+ {[%clk 0:00:19]} 43. Kh3 {[%clk 0:00:01]}  Qf1+ {[%clk 0:00:19]} 44. Bg2 {[%clk 0:00:02]}  Qxg2# {[%clk 0:00:19]} 0-1


[Site "https://www.chess.com"]

[Event "Titled Tuesday Blitz May 16 Early 2023"]
[White "Mikhailovsky, Vladimir"]
[Black "vlajkovicS"]
[WhiteFideId "34105414"]
[WhiteElo "2271"]
[BlackElo "2607"]
[Result "0-1"]
[Round "07"]
[TimeControl "180+2"]
[Date "2023.05.16"]
[WhiteClock "0:00:00"]
[BlackClock "0:00:12"]

1. d4 {[%clk 0:03:00]}  e6 {[%clk 0:03:00]} 2. e4 {[%clk 0:03:00]}  a6 {[%clk 0:02:59]} 3. Nf3 {[%clk 0:02:56]}  b5 {[%clk 0:03:00]} 4. Bd3 {[%clk 0:02:56]}  Bb7 {[%clk 0:03:00]} 5. O-O {[%clk 0:02:56]}  c5 {[%clk 0:03:00]} 6. c3 {[%clk 0:02:57]}  Be7 {[%clk 0:02:56]} 7. Qe2 {[%clk 0:02:57]}  Nf6 {[%clk 0:02:56]} 8. e5 {[%clk 0:02:56]}  Nd5 {[%clk 0:02:56]} 9. Qe4 {[%clk 0:02:51]}  Nc6 {[%clk 0:02:53]} 10. Qg4 {[%clk 0:02:50]}  g6 {[%clk 0:02:51]} 11. Bh6 {[%clk 0:02:49]}  cxd4 {[%clk 0:02:49]} 12. cxd4 {[%clk 0:02:49]}  Qb6 {[%clk 0:02:49]} 13. Nc3 {[%clk 0:02:45]}  Ncb4 {[%clk 0:02:46]} 14. Be4 {[%clk 0:02:27]}  Rc8 {[%clk 0:02:44]} 15. Nxd5 {[%clk 0:02:23]}  Bxd5 {[%clk 0:02:45]} 16. Rac1 {[%clk 0:02:16]}  Rc6 {[%clk 0:02:25]} 17. a3 {[%clk 0:02:08]}  Bxe4 {[%clk 0:02:23]} 18. Qxe4 {[%clk 0:02:09]}  Nd5 {[%clk 0:02:09]} 19. Rc2 {[%clk 0:01:48]}  b4 {[%clk 0:01:35]} 20. Rxc6 {[%clk 0:01:37]}  dxc6 {[%clk 0:01:23]} 21. a4 {[%clk 0:01:34]}  Kd7 {[%clk 0:01:14]} 22. Nd2 {[%clk 0:01:27]}  c5 {[%clk 0:01:11]} 23. Nc4 {[%clk 0:01:20]}  Qc6 {[%clk 0:01:10]} 24. Rd1 {[%clk 0:01:14]}  cxd4 {[%clk 0:01:07]} 25. Rxd4 {[%clk 0:01:15]}  Bc5 {[%clk 0:00:54]} 26. Rd1 {[%clk 0:01:10]}  Rc8 {[%clk 0:00:54]} 27. Be3 {[%clk 0:00:32]}  Qxa4 {[%clk 0:00:26]} 28. Rxd5+ {[%clk 0:00:06]}  exd5 {[%clk 0:00:26]} 29. Qxd5+ {[%clk 0:00:07]}  Ke8 {[%clk 0:00:27]} 30. h4 {[%clk 0:00:07]}  Qc6 {[%clk 0:00:15]} 31. Qd3 {[%clk 0:00:08]}  Be7 {[%clk 0:00:14]} 32. Nb6 {[%clk 0:00:07]}  Rd8 {[%clk 0:00:14]} 33. Qxa6 {[%clk 0:00:07]}  Bxh4 {[%clk 0:00:13]} 34. Qe2 {[%clk 0:00:03]}  Kf8 {[%clk 0:00:13]} 35. Qg4 {[%clk 0:00:00]}  Be7 {[%clk 0:00:12]} 0-1


[Site "https://www.chess.com"]